Workbook

Sheet 收支总表
A2: 收支总表
A3: 部门：751_怀化市机关事务管理局
D4: 单位：万元
A5: 收 入 | C5: 支 出 | D5: 支 出
A6: 项 目 | B6: 预算数 | C6: 项 目 | D6: 预算数
A7: 一、财政拨款 | B7: 2,683.39 | C7: 一、[201]一般公共服务支出 | D7: 2,661.22
A8: 二、财政专户管理资金收入 | C8: 二、[202]外交支出
A9: 三、事业收入 | C9: 三、[203]国防支出
A10: 四、上级补助收入 | C10: 四、[204]公共安全支出
A11: 五、事业单位经营收入 | C11: 五、[205]教育支出
A12: 六、附属单位上缴收入 | C12: 六、[206]科学技术支出
A13: 七、其他收入 | C13: 七、[207]文化旅游体育与传媒支出
C14: 八、[208]社会保障和就业支出 | D14: 9.72
C15: 九、[209]社会保险基金支出
C16: 十、[210]卫生健康支出 | D16: 5.16
C17: 十一、[211]节能环保支出
C18: 十二、[212]城乡社区支出
C19: 十三、[213]农林水支出
C20: 十四、[214]交通运输支出
C21: 十五、[215]资源勘探工业信息等支出
C22: 十六、[216]商业服务业等支出
C23: 十七、[217]金融支出
C24: 十八、[219]援助其他地区支出
C25: 十九、[220]自然资源海洋气象等支出
C26: 二十、[221]住房保障支出 | D26: 7.29
C27: 二十一、[222]粮油物资储备支出
C28: 二十二、[223]国有资本经营预算支出
C29: 二十三、[224]灾害防治及应急管理支出
C30: 二十四、[227]预备费
C31: 二十五、[229]其他支出
C32: 二十六、[230]转移性支出
C33: 二十七、[231]债务还本支出
C34: 二十八、[232]债务付息支出
C35: 二十九、[233]债务发行费用支出
C36: 三十、[234]抗疫特别国债安排的支出
A39: 本年收入合计 | B39: =SUM(B7:B38) -> 2,683.39 | C39: 本年支出合计 | D39: =SUM(D7:D38) -> 2,683.39
A40: 财政拨款结余结转 | C40: 结转下年
A41: 财政拨款结转
A42: 财政拨款结余
A43: 财政专户结余结转
A44: 单位资金结余结转
A45: 收入总计 | B45: 2,683.39 | C45: 支出总计 | D45: 2,683.39

Sheet 收入总表
A2: 收入总表
A3: 部门：751_怀化市机关事务管理局
A4: 单位：万元
A5: 单位 | C5: 总计 | D5: 本年收入 | L5: 上年结转
A6: 编码 | B6: 名称 | D6: 合计 | E6: 财政拨款 | F6: 财政专户管理资金收入 | G6: 事业收入 | H6: 上级补助收入 | I6: 事业单位经营收入 | J6: 附属单位上缴收入 | K6: 其他收入 | L6: 合计 | M6: 财政拨款结余结转 | P6: 财政专户结转结余 | Q6: 单位资金结余结转
M7: 小计 | N7: 财政拨款结转 | O7: 财政拨款结余
A8: 总计： | C8: 2,683.39 | D8: 2,683.39 | E8: 2,683.39
A9: 部门：751_怀化市机关事务管理局 | C9: =SUM(C10:C11) -> 2,683.39 | D9: =SUM(D10:D11) -> 2,683.39 | E9: =SUM(E10:E11) -> 2,683.39
A10: 751001 | B10: 怀化市机关事务管理局 | C10: 2,532.52 | D10: 2,532.52 | E10: 2,532.52
A11: 751004 | B11: 怀化市委市政府机关会堂管理所 | C11: 150.87 | D11: 150.87 | E11: 150.87

Sheet 支出总表
A2: 支出总表
A3: 751_怀化市机关事务管理局
A4: 单位：万元
A5: 单位 | C5: 总计 | D5: 基本支出 | G5: 项目支出
A6: 编码 | B6: 名称 | D6: 合计 | E6: 人员类 | F6: 公用经费 | G6: 合计 | H6: 其他运转类 | I6: 特定目标类
A7: 总计: | C7: 2,683.39 | D7: 907.24 | E7: 797.74 | F7: 109.50 | G7: 1,776.15 | H7: 94.70 | I7: 1,681.45
A8: 751_怀化市机关事务管理局 | C8: =SUM(C9:C10) -> 2,683.39 | D8: =SUM(D9:D10) -> 907.24 | E8: 797.74 | F8: 109.50 | G8: 1,776.15 | H8: 94.70 | I8: 1,681.45
A9: 751001 | B9: 怀化市机关事务管理局 | C9: 2,532.52 | D9: 806.37 | E9: 711.87 | F9: 94.50 | G9: 1,726.15 | H9: 44.70 | I9: 1,681.45
A10: 751004 | B10: 怀化市委市政府机关会堂管理所 | C10: 150.87 | D10: 100.87 | E10: 85.87 | F10: 15.00 | G10: 50.00 | H10: 50.00

Sheet 财拨总表
A2: 财政拨款收支总表
A3: 部门：751_怀化市机关事务管理局
A4: 单位：万元
A5: 收 入 | C5: 支 出
A6: 项目 | B6: 预算数 | C6: 项目 | D6: 预算数
A7: 一、本年收入 | B7: 2,683.39 | C7: 一、本年支出 | D7: 2,683.39
A8: （一）一般公共预算拨款 | B8: 2,683.39 | C8: 一、[201]一般公共服务支出 | D8: 2,661.22
A9: （二）政府性基金预算拨款 | C9: 二、[202]外交支出
A10: （三）国有资本经营预算拨款 | C10: 三、[203]国防支出
A11: 二、上年结转 | C11: 四、[204]公共安全支出
A12: （一）一般公共预算拨款 | C12: 五、[205]教育支出
A13: （二）政府性基金预算拨款 | C13: 六、[206]科学技术支出
A14: （三）国有资本经营预算拨款 | C14: 七、[207]文化旅游体育与传媒支出
C15: 八、[208]社会保障和就业支出 | D15: 9.72
C16: 九、[209]社会保险基金支出
C17: 十、[210]卫生健康支出 | D17: 5.16
C18: 十一、[211]节能环保支出
C19: 十二、[212]城乡社区支出
C20: 十三、[213]农林水支出
C21: 十四、[214]交通运输支出
C22: 十五、[215]资源勘探工业信息等支出
C23: 十六、[216]商业服务业等支出
C24: 十七、[217]金融支出
C25: 十八、[219]援助其他地区支出
C26: 十九、[220]自然资源海洋气象等支出
C27: 二十、[221]住房保障支出 | D27: 7.29
C28: 二十一、[222]粮油物资储备支出
C29: 二十二、[223]国有资本经营预算支出
C30: 二十三、[224]灾害防治及应急管理支出
C31: 二十四、[227]预备费
C32: 二十五、[229]其他支出
C33: 二十六、[230]转移性支出
C34: 二十七、[231]债务还本支出
C35: 二十八、[232]债务付息支出
C36: 二十九、[233]债务发行费用支出
C37: 三十、[234]抗疫特别国债安排的支出
C38: 二、结转下年
A39: 收入总计 | B39: 2,683.39 | C39: 支出总计 | D39: 2,683.39

Sheet 一般预算支出功能分类
A2: 本年一般公共预算支出表
A3: 部门：751_怀化市机关事务管理局
A4: 单位：万元
A5: 科目编码 | B5: 科目名称 | C5: 合计 | D5: 基本支出 | G5: 项目支出
D6: 小计 | E6: 人员经费 | F6: 公用经费
A7: 201 | B7: 一般公共服务支出 | C7: 2,661.22 | D7: 885.07 | E7: 775.57 | F7: 109.50 | G7: 1,776.15
A8: 20103 | B8: 政府办公厅（室）及相关机构事务 | C8: 2,661.22 | D8: 885.07 | E8: 775.57 | F8: 109.50 | G8: 1,776.15
A9: 2010303 | B9: 机关服务 | C9: 2,661.22 | D9: 885.07 | E9: 775.57 | F9: 109.50 | G9: 1,776.15
A10: 208 | B10: 社会保障和就业支出 | C10: 9.72 | D10: 9.72 | E10: 9.72
A11: 20805 | B11: 行政事业单位养老支出 | C11: 9.72 | D11: 9.72 | E11: 9.72
A12: 2080505 | B12: 机关事业单位基本养老保险缴费支出 | C12: 9.72 | D12: 9.72 | E12: 9.72
A13: 210 | B13: 卫生健康支出 | C13: 5.16 | D13: 5.16 | E13: 5.16
A14: 21011 | B14: 行政事业单位医疗 | C14: 5.16 | D14: 5.16 | E14: 5.16
A15: 2101102 | B15: 事业单位医疗 | C15: 5.16 | D15: 5.16 | E15: 5.16
A16: 221 | B16: 住房保障支出 | C16: 7.29 | D16: 7.29 | E16: 7.29
A17: 22102 | B17: 住房改革支出 | C17: 7.29 | D17: 7.29 | E17: 7.29
A18: 2210201 | B18: 住房公积金 | C18: 7.29 | D18: 7.29 | E18: 7.29
A19: 合计： | C19: =C7+C10+C13+C16 -> 2,683.39 | D19: =D7+D10+D13+D16 -> 907.24 | E19: =E7+E10+E13+E16 -> 797.74 | F19: =F7+F10+F13+F16 -> 109.50 | G19: =G7+G10+G13+G16 -> 1,776.15

Sheet 一般公共预算基本支出经济分类
A1: 本年一般公共预算基本支出表
A2: 部门：751_怀化市机关事务管理局
A3: 单位：万元
A4: 部门预算支出经济分类科目 | C4: 本年一般公共预算基本支出
A5: 科目编码 | B5: 科目名称 | C5: 合计 | D5: 人员经费 | E5: 公用经费
A6: 301 | B6: 工资福利支出 | C6: =D6+E6 -> 767.54 | D6: =SUM(D7:D14) -> 718.84 | E6: =SUM(E7:E14) -> 48.70
A7: 30101 | B7: 基本工资 | C7: 306.33 | D7: 306.33 | E7: 0.00
A8: 30102 | B8: 津贴补贴 | C8: 111.53 | D8: 111.53 | E8: 0.00
A9: 30103 | B9: 奖金 | C9: 65.05 | D9: 16.35 | E9: 48.70
A10: 30107 | B10: 绩效工资 | C10: 79.77 | D10: 79.77 | E10: 0.00
A11: 30108 | B11: 机关事业单位基本养老保险缴费 | C11: 83.51 | D11: 83.51 | E11: 0.00
A12: 30110 | B12: 职工基本医疗保险缴费 | C12: 44.36 | D12: 44.36 | E12: 0.00
A13: 30113 | B13: 住房公积金 | C13: 61.68 | D13: 61.68 | E13: 0.00
A14: 30199 | B14: 其他工资福利支出 | C14: 15.32 | D14: 15.32 | E14: 0.00
A15: 302 | B15: 商品和服务支出 | C15: 121.43 | D15: =SUM(D16:D23) -> 66.43 | E15: =SUM(E16:E23) -> 55.00
A16: 30201 | B16: 办公费 | C16: 4.00 | D16: 0.00 | E16: 4.00
A17: 30206 | B17: 电费 | C17: 3.00 | D17: 0.00 | E17: 3.00
A18: 30207 | B18: 邮电费 | C18: 2.30 | D18: 0.00 | E18: 2.30
A19: 30211 | B19: 差旅费 | C19: 2.00 | D19: 0.00 | E19: 2.00
A20: 30217 | B20: 公务接待费 | C20: 0.20 | D20: 0.00 | E20: 0.20
A21: 30228 | B21: 工会经费 | C21: 14.95 | D21: 9.95 | E21: 5.00
A22: 30229 | B22: 福利费 | C22: 7.00 | D22: 0.00 | E22: 7.00
A23: 30299 | B23: 其他商品和服务支出 | C23: 87.98 | D23: 56.48 | E23: 31.50
A24: 303 | B24: 对个人和家庭的补助 | C24: 18.27 | D24: =SUM(D25:D27) -> 12.47 | E24: =SUM(E25:E27) -> 5.80
A25: 30305 | B25: 生活补助 | C25: 2.48 | D25: 2.48 | E25: 0.00
A26: 30302 | B26: 退休费 | C26: 12.29 | D26: 9.99 | E26: 2.30
A27: 30309 | B27: 奖励金 | C27: 3.50 | D27: 0.00 | E27: 3.50
A28: 合 计 | C28: =C6+C15+C24 -> 907.24 | D28: =D6+D15+D24 -> 797.74 | E28: =E6+E15+E24 -> 109.50

Sheet 三公
A2: 本年“三公”经费支出表
A3: 部门：751_怀化市机关事务管理局
F4: 单位：万元
A5: 单位 | C5: 三公经费 | F5: 三公经费
A6: 单位编码 | B6: 单位名称 | C6: “三公”经费合计 | D6: 因公出国（境）费 | E6: 公务用车购置及运行费 | F6: 公务用车购置及运行费 | H6: 公务接待费
E7: 小计 | F7: 公务用车购置费 | G7: 公务用车运行费
A8: 751001 | B8: 怀化市机关事务管理局 | C8: 118.00 | E8: 110.00 | G8: 110.00 | H8: 8.00

Sheet 政府性基金
A2: 政府性基金预算支出表
A3: 部门：751_怀化市机关事务管理局
A4: 单位：万元
A5: 科目编码 | B5: 科目名称 | C5: 本年政府性基金预算支出
C6: 合计 | D6: 基本支出 | E6: 项目支出
A10: 合计： | C10: 0.00 | D10: 0.00 | E10: 0.00
A11: 注：当此表数据为0或空时，即本部门无此项支出，因此表中无数据。

Sheet 国有资本经营预算支出表
A2: 国有资本经营预算支出表
A4: 部门： | C4: 751_怀化市机关事务管理局 | G4: 金额单位：万元
A5: 项目 | E5: 本年支出
A6: 功能分类科目编码 | D6: 科目名称 | E6: 合计 | F6: 基本支出 | G6: 项目支出
A9: 栏次 | E9: 1 | F9: 2 | G9: 3
A10: 合计 | E10: 0 | F10: 0 | G10: 0
A12: 注：当此表数据为0或空时，即本部门无此项支出，因此表中无数据。

Sheet 项目支出绩效目标表
A2: 项目支出绩效目标表
A3: 部门：751_怀化市机关事务管理局
A4: 单位：万元
A5: 类型 | B5: 项目名称 | C5: 项目单位(部门) | D5: 合计 | E5: 本年拨款 | M5: 财政拨款结转 | T5: 财政拨款结转
E6: 小计 | F6: 一般公共预算 | I6: 政府性基金预算 | J6: 国有资本经营预算 | K6: 财政专户预算 | L6: 单位资金预算 | M6: 小计 | N6: 一般公共预算 | Q6: 政府性基金预算 | R6: 国有资本经营预算 | S6: 财政专户预算 | T6: 单位资金预算
F7: 小计 | G7: 经费拨款 | H7: 纳入一般公共预算管理的非税收入拨款 | N7: 小计 | O7: 经费拨款 | P7: 纳入一般公共预算管理的非税收入拨款
A8: 总计： | D8: 2,683.39 | E8: 2,683.39 | F8: 2,683.39 | G8: 2,633.39 | H8: 50.00
A9: 751_怀化市机关事务管理局 | D9: =D10+D28 -> 2,683.39 | E9: =E10+E28 -> 2,683.39 | F9: =F10+F28 -> 2,683.39 | G9: =G10+G28 -> 2,633.39 | H9: =H10+H28 -> 50.00
A10: 751001_怀化市机关事务管理局 | D10: 2,532.52 | E10: 2,532.52 | F10: 2,532.52 | G10: 2,532.52 | H10: 0.00
A11: 人员类 | D11: 711.87 | E11: 711.87 | F11: 711.87 | G11: 711.87 | H11: 0.00
A12: 人员类 | B12: 住房公积金 | C12: 怀化市机关事务管理局 | D12: 54.39 | E12: 54.389136 | F12: 54.39 | G12: 54.39
B13: 对个人和家庭补助 | C13: 怀化市机关事务管理局 | D13: 21.37 | E13: 21.3704 | F13: 21.37 | G13: 21.37
B14: 社会保险缴费 | C14: 怀化市机关事务管理局 | D14: 112.99 | E14: 112.987826 | F14: 112.99 | G14: 112.99
B15: 其他工资福利支出 | C15: 怀化市机关事务管理局 | D15: 22.30 | E15: 22.300464 | F15: 22.30 | G15: 22.30
B16: 工资性支出 | C16: 怀化市机关事务管理局 | D16: 500.82 | E16: 500.8228 | F16: 500.82 | G16: 500.82
A17: 公用经费 | D17: 94.50 | E17: 94.50 | F17: 94.50 | G17: 94.50 | H17: 0.00
A18: 公用经费 | B18: 公用经费 | C18: 怀化市机关事务管理局 | D18: 94.50 | E18: 94.5 | F18: 94.50 | G18: 94.50
A19: 运转其他类 | D19: 44.70 | E19: 44.70 | F19: 44.70 | G19: 44.70 | H19: 0.00
A20: 运转其他类 | B20: 专项业务(工作)经费 | C20: 怀化市机关事务管理局 | D20: 36.00 | E20: 36 | F20: 36.00 | G20: 36.00
B21: 活动经费（含关工委活动经费3万元） | C21: 怀化市机关事务管理局 | D21: 8.70 | E21: 8.7 | F21: 8.70 | G21: 8.70
A22: 特定目标类 | D22: 1,681.45 | E22: 1,681.45 | F22: 1,681.45 | G22: 1,681.45 | H22: 0.00
A23: 特定目标类 | B23: 市委大院供水管网改造项目办公公用部分经费 | C23: 怀化市机关事务管理局 | D23: 204.00 | E23: 204 | F23: 204.00 | G23: 204.00
B24: 怀化海关人员周转用房费用 | C24: 怀化市机关事务管理局 | D24: 18.75 | E24: 18.75 | F24: 18.75 | G24: 18.75
B25: 2022年两院公用水电费缺口 | C25: 怀化市机关事务管理局 | D25: 242.00 | E25: 242 | F25: 242.00 | G25: 242.00
B26: 市委机关大院和市民服务中心物业管理费 | C26: 怀化市机关事务管理局 | D26: 932.71 | E26: 932.7065 | F26: 932.71 | G26: 932.71
B27: 涉改党政机关办公用房调配维护修缮经费 | C27: 怀化市机关事务管理局 | D27: 283.99 | E27: 283.99 | F27: 283.99 | G27: 283.99
A28: 751004_怀化市委市政府机关会堂管理所 | D28: 150.87 | E28: 150.87 | F28: 150.87 | G28: 100.87 | H28: 50.00
A29: 人员类 | D29: 85.87 | E29: 85.87 | F29: 85.87 | G29: 85.87 | H29: 0.00
A30: 人员类 | B30: 其他工资福利支出 | C30: 怀化市委市政府机关会堂管理所 | D30: 2.97 | E30: 2.968764 | F30: 2.97 | G30: 2.97
B31: 工资性支出 | C31: 怀化市委市政府机关会堂管理所 | D31: 60.73 | E31: 60.7332 | F31: 60.73 | G31: 60.73
B32: 社会保险缴费 | C32: 怀化市委市政府机关会堂管理所 | D32: 14.88 | E32: 14.879634 | F32: 14.88 | G32: 14.88
B33: 住房公积金 | C33: 怀化市委市政府机关会堂管理所 | D33: 7.29 | E33: 7.287984 | F33: 7.29 | G33: 7.29
A34: 公用经费 | D34: 15.00 | E34: 15.00 | F34: 15.00 | G34: 15.00 | H34: 0.00
A35: 公用经费 | B35: 公用经费 | C35: 怀化市委市政府机关会堂管理所 | D35: 15.00 | E35: 15 | F35: 15.00 | G35: 15.00
A36: 运转其他类 | D36: 50.00 | E36: 50.00 | F36: 50.00 | H36: 50.00
A37: 运转其他类 | B37: 机关会堂日常管理维护费 | C37: 怀化市委市政府机关会堂管理所 | D37: 50.00 | E37: 50 | F37: 50.00 | H37: 50.00

Sheet 整体支出绩效目标表
A1: 2022年怀化市机关事务管理局部门整体支出绩效目标表
A2: 填报单位：（盖章）
A3: *部门（单位）名称 | B3: 怀化市机关事务管理局
A4: *年度履职目标 | B4: （一）指导全市机关事务工作，负责市直机关事务的管理、保障和服务工作，组织拟定全市机关事务管理和后勤体制改革的具体政策、制度、标准并监督实施；负责指导全市机关后勤服务单位业务工作；会同有关部门协调解决机关后勤工作中的有关问题。（二）对市直机关单位的房地产实施管理，制订相关管理制度并监督执行；协助有关部门做好市直机关房地产的监督管理工作；负责市直党政机关办公用房集中统一管理，协助有关部门管理市直机关的行政建房计划和投资；根据授权承担市直机关行政办公用房及其他非经营性项目的集中统一建设职责；负责市直机关办公用房维修管理，承办市直机关房屋维修、危旧房改造事务工作；负责市直机关行政用房、住宅建设土地使用权证的有关管理工作。指导、监督、检查全市党政机关办公用房管理，指导市直机关物业管理工作。（三）负责市直行政事业单位国有资产集中统一管理，承担配置计划审核、产权界定、清查登记、资产处置工作。负责市直行政事业单位经营性资产的管理工作。负责外宾赠送我市领导人和各部门的礼品、市直机关单位公派出国人员的礼品和其他礼金礼品的管理工作。会同有关部门负责市纪委监委移交资产物品的管理处置工作。（四）负责市直机关住房制度改革工作，研究拟订住房制度改革方案和实施细则并组织实施；在权限范围内负责市直公务员集中住宅区、保障性住房的建设、管理和服务工作；负责市直机关存量公有住房清查、产权登记、调剂配租、维修维护、资产处置等工作。（五）指导、监督、检查全市公务用车管理工作；负责市直行政事业单位公务用车的编制、配备、更新、处置以及预算内专项用于解决市领导和市直行政事业单位公务用车的经费管理工作，负责市直公务用车平台管理工作。（六）统筹协调、指导、推进全市公共机构节能工作，会同有关部门推进全市节约型机关建设，制定推动全市公共机构节能的规划、制度并组织实施；负责市直公共机构节约能源资源管理工作。（七）负责按规定为异地交流来怀工作的市级领导提供住房保障等服务。（八）负责市委机关、市政府机关（市民服务中心，下同）的事务管理、保障和服务工作；承担市委机关、市政府机关房屋维修、危旧房改造事务工作；承办市委机关住房交易管理工作。（九）会同相关部门组织实施市直机关后勤员工培训工作。（十）承办市委、市人民政府交办的其它任务。（十一）有关职责分工。市财政局负责制定行政事业单位国有资产管理规章制度，并负责组织实施和监督检查。市机关事务管理局负责市直行政事业单位国有资产管理，承担产权界定、清查登记、资产处置工作，接受市财政局的指导和监督检查。市直行政事业单位按规定负责所属事业单位及派出机构的国有资产管理。
A5: *年度主要任务 | B5: *任务名称 | H5: *主要内容
B6: 日常工作任务 | H6: 指导全市机关事务工作，负责市直机关事务的管理、保障和服务工作；做好市直机关办公用房维修管理，承办市直机关房屋维修、危旧房改造事务工作等相关工作；做好市直行政事业单位国有资产集中统一管理；做好市直机关住房制度改革工作；做好指导、监督、检查全市公务用车管理工作；统筹协调、指导、推进全市公共机构节能工作；按规定做好为异地交流来怀工作的市级领导提供住房保障等服务；做好市委机关、市政府机关（市民服务中心）的事务管理、保障和服务工作；做好市委、市人民政府交办的其它任务。
A7: *年度预算申请情况 | B7: *部门预算总额（万元） | H7: 2,683.39
B8: 1、资金来源：（1）财政性资金 | H8: 2,683.39
B9: （2）其他资金
B10: 2、资金结构：（1）基本支出 | H10: 907.24
B11: （2）项目支出 | H11: 1,776.15
A12: *一级指标 | B12: *二级指标 | C12: *三级指标 | E12: *指标值类型 | F12: *指标值 | G12: *评/扣分标准 | I12: *指标值说明 | K12: 备注
A13: 投入管理指标（50分） | B13: 工作目标管理 （10分） | C13: 年度履职目标相关性 | E13: 定性 | F13: 相关 | G13: 1.年度履职目标是否与部门职责、工作规划和重点工作相关，计1分；2.确定的预算项目是否合理，是否与工作目标密切相关，计1分；3.工作任务和项目预算安排是否合理，计1分。否则，酌情扣分。 | I13: 1.年度履职目标是否符合国家、省委省政府战略部署和发展规划，与国家、省宏观政策、行业政策一致；2.年度履职目标是否与部门职责、工作规划和重点工作相关；3.确定的预算项目是否合理，是否与工作目标密切相关；4.工作任务和项目预算安排是否合理。
C14: 工作任务科学性 | E14: 定性 | F14: 科学 | G14: 1.工作任务有明确的绩效目标，绩效目标与部门年度履职目标一致，能体现工作任务的产出和效果，计1.5分；2.工作任务对应的预算项目有明确的绩效目标，绩效目标与部门职责目标、工作任务目标一致，能体现预算项目的产出和效果；计1.5分。否则，酌情扣分。 | I14: 1.工作任务是否有明确的绩效目标，绩效目标是否与部门年度履职目标一致，是否能体现工作任务的产出和效果；2.工作任务对应的预算项目是否有明确的绩效目标，绩效目标是否与部门职责目标、工作任务目标一致，是否能体现预算项目的产出和效果
C15: 绩效指标合理性 | E15: 定性 | F15: 合理 | G15: 1.工作任务、预算项目绩效指标设置能够准确反映部门绩效完成情况，计1分；2.工作任务、预算项目绩效指标清晰、细化、可评价、可衡量，计1分；3.工作任务、预算项目绩效指标的评价标准清晰、可衡量，计1分；4.绩效指标与部门年度的任务数或计划数相对应，计1分。否则，酌情扣分。 | I15: 1.工作任务、预算项目绩效指标设置是否准确反映部门绩效完成情况；2.工作任务、预算项目绩效指标是否清晰、细化、可评 价、可衡量；3.工作任务、预算项目绩效指标的评价标准是否清晰、可衡量；4.是否与部门年度的任务数或计划数相对应。
B16: 预算和财务管理（26分） | C16: 预算编制完整性 | E16: 定性 | F16: 完整 | G16: 1.部门所有收入全部纳入部门预算，计1分；2.部门支出预算统筹各类资金来源，全部纳入部门预算管理，计1分。否则，酌情扣分。 | I16: 1.部门所有收入是否全部纳入部门预算；2.部门支出预算是否统筹各类资金来源，全部纳入部门预算管理。
C17: 专项资金细化率 | E17: ≥ | F17: 100 | G17: 该指标达到100%得满分，共计2分，每降低百分之一扣权重分的1%。 | I17: 专项资金细化率=（已细化到具体市县和承担单位的资金数/部门参与分配资金总数）×100%。 | K17: 区间值：90%-100%
C18: 预算执行率 | E18: ≥ | F18: 100 | G18: 该指标达到100%得满分，共计2分，每降低百分之一扣权重分的1%。 | I18: 预算执行率=（预算完成数/预算数）×100%。预算完成数指部门实际执行的预算数；预算数指财政部门批复的本年度部门的（调整）预算数。 | K18: 区间值：90%-100%
C19: 预算调整率 | E19: ≤ | F19: 10 | G19: 部门预算总额调整幅度在±10%以内，得2分，每增减1%扣0.1分，扣完为止。 | I19: 预算调整率=（预算调整数-年初预算数）/年初预算数×100%。 预算调整数：部门在本年度内涉及预算的追加、追减或结构调整的资金总和（因落实国家政策、发生不可抗力、上级部门或本级党委政府临时交办而产生的调整除外）。 | K19: 区间值：0%-30%
C20: 结转结余率 | E20: ≤ | F20: 10 | G20: 结转结余率控制在10%以内，得2分；每增加10%的结余率扣1分，扣完为止 | I20: 结转结余率=结转结余总额/预算数*100%。结转结余总额是指部门本年度的结转结余资金之和。预算数是指财政部门批复的本年度部门的（调整）预算数。 | K20: 区间值：0%-20%
C21: “三公经费”控制率 | E21: ≤ | F21: 100 | G21: “三公经费”控制率≤100%，得2分；每增加1%的“三公经费”扣0.2分，扣完为止。 | I21: “三公经费”控制率=本年度“三公经费”实际支出数/“三公经费”预算数*100% | K21: 区间值：0%-100%
C22: 政府采购执行率 | E22: ≥ | F22: 100 | G22: 政府采购执行率在90%-100%，得2分；每超过（降低）10%的波动，扣0.5分，扣完为止。 | I22: 政府采购执行率=（实际政府采购金额/政府采购预算数）×100%。政府采购预算：采购机关根据事业发展计划和行政任务编制的、并经过规定程序批准的年度政府采购计划。 | K22: 区间值：80%-100%
C23: 决算真实性 | E23: 定性 | F23: 真实 | G23: 决算编制数据与账表一致，决算报表数据与会计账簿数据一致，计2分。每发现1项错误，扣0.5分，扣完为止。 | I23: 反映本部门决算工作情况。决算编制数据是否账表一致，即决算报表数据与会计账簿数据是否一致。
C24: 资金使用合规性 | E24: 定性 | F24: 合规 | G24: 资金使用完全合规，得6分；其它按照以上8个要点，有1点未达到扣1分，扣完为止。 | I24: 部门（单位）是否按照相关法律法规以及资金管理办法规定的用途使用预算资金，用以反映和考核部门(单位）预算资金的规范运行情况。1.是否符合国家财经法规和财务管理制度规定以及有关专项资金管理办法的规定；2.资金的拨付是否有完整的审批程序和手续；3.项目的重大开支是否经过评估论证；4.是否符合部门预算批复的用途；5.是否存在截留支出情况；6.是否存在挤占支出情况；7.是否存在挪用支出情况；8.是否存在虚列支出情况。
C25: 管理制度健全性 | E25: 定性 | F25: 健全 | G25: 具备或建立健全的预算资金管理办法、内部管理制度、会计核算制度、会计岗位制度等管理制度，计4分。制度有缺失或制度存在明显缺陷每项目扣0.5分，扣完为止；无制度，该指标为0分。 | I25: 部门（单位）为加强预算管理，规范财务行为而制定的管理制度是否健全完整，用以反映和考核部门（单位）预算管理制度为完成主要职责或促成事业发展的保障情况。1.是否已制定或具有预算资金管理办法、内部管理制度、会计核算制度、会计岗位制度等管理制度；2.相关管理制度是否得到有效执行。
B26: 预算和财务管理（6分） | C26: 预决算信息公开性 | E26: 定性 | F26: 公开 | G26: 1.按规定内容公开预决算信息，计1分；2.按规定时限公开预决算信息，计1分。否则，酌情扣分。 | I26: 部门（单位）是否按照政府信息公开有关规定公开部门预算、执行、决算、监督、绩效等相关预决算信息，用以反映和考核部门（单位）预决算管理的公开透明情况。1.是否按规定内容公开预决算信息；2.是否按规定时限公开预决算信息。
C27: 资产管理规范性 | E27: 定性 | F27: 规范 | G27: 1.资产及时规范入账，资产报表数据与会计账簿数据相符，资产实物与财务账、资产账相符，计1分；2.新增资产符合规定程序和规定标准，新增资产考虑闲置存量资产，计1分；3.资产对外有偿使用（出租出借等）、对外投资、担保、资产处置等事项按规定报批，计1分；4.资产收益及时足额上交财政，计1分。否则，酌情扣分。 | I27: 部门（单位）的资产配置、使用是否合规，处置是否规范，收入是否及时足额上缴，用以反映和考核部门（单位）资产管理的规范程度。1.资产是否及时规范入账，资产报表数据与会计账簿数据是否相符，资产实物与财务账、资产账是否相符；2.新增资产是否符合规定程序和规定标准，新增资产是否考虑闲置存量资 产；3.资产对外有偿使用（出租出借等）、对外投资、担保、资产处置等事项是否按规定报批；4.资产收益是否及时足额上交财政。
B28: 绩效管理（8分） | C28: 绩效监控完成率 | E28: = | F28: 100 | G28: 该指标达到100%得满分，共计2分，每降低百分之一扣权重分的1%。 | I28: 部门（单位）按要求实施绩效监控的项目数量占应实施绩效监控项目总数的比重。部门绩效监控完成率=已完成绩效监控项目数量/部门项目总数*100%
C29: 绩效自评完成率 | E29: = | F29: 100 | G29: 该指标达到100%得满分，共计2分，每降低百分之一扣权重分的1%。 | I29: 部门（单位）按要求实施绩效自评的项目数量占应实施绩效自评项目总数的比重。部门绩效自评完成率=已完成评价项目数量/部门项目总数*100%
C30: 部门绩效评价完成率 | E30: = | F30: 100 | G30: 该指标达到100%得满分，共计2分，每降低百分之一扣权重分的1%。 | I30: 部门重点绩效评价项目评价完成情况。部门绩效评价完成率=已完成评价项目数量/部门重点绩效评价项目数*100%
C31: 评价结果应用率 | E31: = | F31: 100 | G31: 该指标达到100%得满分，共计2分，每降低百分之一扣权重分的1%。 | I31: 绩效监控、单位自评、部门绩效评价、财政重点绩效评价结果应用情况。评价结果应用率=评价提出的意见建议采纳数/提出的意见建议总数*100%
A32: 产出指标 （29分） | B32: 重点工作任务完成（20分） | C32: 开展管理清查清查次数 | E32: ≥ | F32: 10次 | G32: 该指标达到计划目标次数得10分，每减少1次，扣1分，扣完为止。 | I32: 根据2022年工作完成情况进行考核。
C33: 公车平台中车辆日常维护及管理台数 | E33: ≥ | F33: 30台 | G33: 该指标达到计划目标得5分，每下降1%，扣0.5分，扣完为止。 | I33: 根据2022年工作完成情况进行考核。
C34: 周转公房日常维护 | E34: ≥ | F34: 1次 | G34: 该指标达到计划目标得5分，否则不得分。 | I34: 根据2022年工作完成情况进行考核。
B35: 履职目标实现 （9分） | C35: 履职目标完成率 | E35: = | F35: 100% | G35: 各项履职目标完成率100%，得5分，每下降1%，扣0.5分，扣完为止。 | I35: 根据2022年履职工作实际完成情况进行考核。
C36: 履职目标完成及时率 | E36: = | F36: 2022年12月之前完成 | G36: 各项履职工作均在2022年12月底之前完成，得4分，每发现1项超出扣1分，扣完为止。 | I36: 根据2022年履职工作实际完成情况进行考核。
A37: 效益指标 （21分） | B37: 履职效益（16分） | C37: 规范车辆租赁管理，加强全市公车平台建设 | E37: 定性 | F37: 有效执行 | G37: 该指标效果明显8分，效果一般4分，否则不得分。 | I37: 根据2022年工作履职情况进行考核。
C38: 完善市直单位办公用房管理 | E38: 定性 | F38: 有效执行 | G38: 该指标效果明显8分，效果一般4分，否则不得分。 | I38: 根据2022年工作履职情况进行考核。
B39: 满意度（5分） | C39: 社会公众满意度 | E39: ≥ | F39: 95 | G39: 满意度95%以上得5分，每减少5%扣1分。 | I39: 该指标主要考察部门整体工作开展情况，社会公众满意度是否达到年初目标。
